fUSD/lending_fUSD_20260626
["ID","MTS","AMOUNT","RATE_DAILY","PERIOD"]
[426471486,1782427843000,-351.15667359,0.00027819,2]
[426471482,1782427843000,-151.49213422,0.00027749,20]
[426471484,1782427843000,-518.5,0.00027804,2]
[426471481,1782427843000,-1022.73372218,0.00027709,2]
[426471488,1782427843000,-180.0,0.00027904,2]
[426471463,1782427843000,-151.49213422,0.00027577,18]
[426471435,1782427843000,-335.62595941,0.00027397,2]
[426471487,1782427843000,-4058.91139571,0.00027893,2]
[426471434,1782427843000,-671.25191881,0.00027397,2]
[426471461,1782427843000,-401.95641844,0.0002753,2]
[426471485,1782427843000,-401.95641844,0.00027804,2]
[426471437,1782427843000,-478.33780616,0.00027397,2]
[426471436,1782427843000,-637.78374155,0.00027397,2]
[426471441,1782427843000,-822.56,0.000274,7]
[426471443,1782427843000,-1000.0,0.000274,2]
[426471439,1782427843000,-1000.0,0.000274,2]
[426471440,1782427843000,-1936.24,0.000274,2]
[426471442,1782427843000,-1575.97,0.000274,7]
[426471438,1782427843000,-238.18335614,0.00027397,2]
[426471444,1782427843000,-1000.0,0.000274,2]
[426471445,1782427843000,-1000.0,0.000274,2]
[426471446,1782427843000,-1000.0,0.000274,2]
[426471464,1782427843000,-4433.69637186,0.00027585,2]
[426471447,1782427843000,-1000.0,0.000274,2]
[426471451,1782427843000,-5224.74,0.000274,2]
[426471453,1782427843000,-5224.74,0.000274,2]
[426471450,1782427843000,-1533.44,0.000274,2]
[426471449,1782427843000,-1000.0,0.000274,2]
[426471448,1782427843000,-1000.0,0.000274,2]
[426471454,1782427843000,-5224.74,0.000274,2]
[426471452,1782427843000,-5224.74,0.000274,2]
[426471456,1782427843000,-151.49213422,0.000274,12]
[426471457,1782427843000,-151.49213422,0.0002742,14]
[426471458,1782427843000,-151.49213422,0.00027473,16]
[426471459,1782427843000,-500.0,0.00027493,14]
[426471460,1782427843000,-500.0,0.000275,7]
[426471455,1782427843000,-5224.74,0.000274,2]
[426471490,1782427843000,-839.06489851,0.00027956,2]
[426471505,1782427843000,-351.15667359,0.0002803,2]
[426471495,1782427843000,-500.0,0.00028,7]
[426471523,1782427843000,-150.0,0.00028604,2]
[426471528,1782427843000,-150.0,0.00028604,2]
[426471538,1782427843000,-567.0,0.00028633,30]
[426471527,1782427843000,-150.0,0.00028604,2]
[426471529,1782427843000,-150.0,0.00028604,2]
[426471531,1782427843000,-150.0,0.00028604,2]
[426471530,1782427843000,-150.0,0.00028604,2]
[426471532,1782427843000,-150.0,0.00028604,2]
[426471534,1782427843000,-2000.0,0.00028619,2]
[426471535,1782427843000,-10000.0,0.00028619,2]
[426471533,1782427843000,-180.601,0.00028604,2]
[426471537,1782427843000,-502.0,0.00028633,30]
[426471536,1782427843000,-401.95641844,0.00028626,2]
[426471539,1782427843000,-240.0,0.00028633,30]
[426471542,1782427843000,-279.0,0.00028635,30]
[426471541,1782427843000,-1048.0,0.00028633,30]
[426471543,1782427843000,-156.0,0.00028635,30]
[426471540,1782427843000,-769.0,0.00028633,30]
[426471545,1782427843000,-218.0,0.00028635,30]
[426471549,1782427843000,-154.0,0.00028635,30]
[426471548,1782427843000,-314.0,0.00028635,30]
[426471546,1782427843000,-265.0,0.00028635,30]
[426471544,1782427843000,-516.0,0.00028635,30]
[426471547,1782427843000,-1043.0,0.00028635,30]
[426471492,1782427843000,-158.7889041,0.00027983,7]
[426471526,1782427843000,-150.0,0.00028604,2]
[426471524,1782427843000,-150.0,0.00028604,2]
[426471516,1782427843000,-1277.0,0.00028496,2]
[426471521,1782427843000,-150.0,0.00028496,2]
[426471522,1782427843000,-216.0,0.00028496,2]
[426471494,1782427843000,-500.0,0.00028,7]
[426471497,1782427843000,-500.0,0.00028,7]
[426471493,1782427843000,-500.0,0.00028,7]
[426471499,1782427843000,-7310.79508902,0.00028,2]
[426471496,1782427843000,-500.0,0.00028,7]
[426471498,1782427843000,-155.07,0.00028,7]
[426471501,1782427843000,-15000.0,0.0002801,3]
[426471500,1782427843000,-151.49213422,0.00028004,22]
[426471502,1782427843000,-5143.37837899,0.0002801,3]
[426471514,1782427843000,-351.15667359,0.00028451,2]
[426471513,1782427843000,-173.0,0.00028434,5]
[426471504,1782427843000,-8065.49347321,0.0002801,3]
[426471491,1782427843000,-797.22967693,0.00027956,2]
[426471507,1782427843000,-351.15667359,0.0002824,2]
[426471519,1782427843000,-150.0,0.00028496,2]
[426471506,1782427843000,-401.95641844,0.00028078,2]
[426471520,1782427843000,-3649.0,0.00028496,2]
[426471517,1782427843000,-1361.0,0.00028496,2]
[426471525,1782427843000,-150.0,0.00028604,2]
[426471518,1782427843000,-150.0,0.00028496,2]
[426471515,1782427843000,-3562.0,0.00028496,2]
[426471511,1782427843000,-822.56,0.000284,7]
[426471512,1782427843000,-1575.97,0.000284,7]
[426471509,1782427843000,-401.95641844,0.00028352,2]
[426471508,1782427843000,-4433.69637186,0.00028257,2]
[426471510,1782427843000,-151.49213422,0.00028361,24]
[426471594,1782427844000,-495.57553,0.0002912,7]
[426471601,1782427844000,-288.517697,0.0002912,7]
[426471585,1782427844000,-151.0,0.0002912,7]
[426471580,1782427844000,-666.0,0.00029119,10]
[426471581,1782427844000,-319.991767,0.0002912,7]
[426471587,1782427844000,-151.0,0.0002912,7]
[426471583,1782427844000,-319.991767,0.0002912,7]
[426471586,1782427844000,-151.0,0.0002912,7]
[426471592,1782427844000,-495.57553,0.0002912,7]
[426471584,1782427844000,-319.991767,0.0002912,7]
[426471595,1782427844000,-151.0,0.0002912,7]
[426471608,1782427844000,-822.56,0.000293,7]
[426471591,1782427844000,-495.57553,0.0002912,7]
[426471593,1782427844000,-495.57553,0.0002912,7]
[426471596,1782427844000,-343.070164,0.0002912,7]
[426471599,1782427844000,-343.070164,0.0002912,7]
[426471600,1782427844000,-343.070164,0.0002912,7]
[426471597,1782427844000,-151.0,0.0002912,7]
[426471598,1782427844000,-343.070164,0.0002912,7]
[426471603,1782427844000,-466725.0,0.0002912,20]
[426471602,1782427844000,-151.0,0.0002912,7]
[426471613,1782427844000,-301.753,0.00029523,2]
[426471604,1782427844000,-401.95641844,0.00029174,2]
[426471589,1782427844000,-151.0,0.0002912,7]
[426471607,1782427844000,-351.15667359,0.00029294,2]
[426471590,1782427844000,-151.0,0.0002912,7]
[426471588,1782427844000,-151.0,0.0002912,7]
[426471573,1782427844000,-412.0,0.00029,2]
[426471579,1782427844000,-244.33732715,0.00029119,10]
[426471551,1782427844000,-200.0,0.000287,10]
[426471550,1782427844000,-351.15667359,0.00028662,2]
[426471553,1782427844000,-1786.0,0.00028719,5]
[426471552,1782427844000,-2241.0,0.00028719,5]
[426471564,1782427844000,-1196.21167658,0.00028962,2]
[426471563,1782427844000,-4433.69637186,0.00028928,2]
[426471556,1782427844000,-300.0,0.000288,10]
[426471554,1782427844000,-4058.91139571,0.00028729,2]
[426471558,1782427844000,-298.8,0.00028863,7]
[426471559,1782427844000,-351.15667359,0.00028872,2]
[426471555,1782427844000,-956.67561232,0.00028795,2]
[426471557,1782427844000,-151.49213422,0.00028836,25]
[426471560,1782427844000,-401.95641844,0.000289,2]
[426471562,1782427844000,-1000.0,0.000289,2]
[426471561,1782427844000,-316.0,0.000289,2]
[426471574,1782427844000,-298.8,0.00029,7]
[426471609,1782427844000,-1575.97,0.000293,7]
[426471577,1782427844000,-200.0,0.00029036,2]
[426471568,1782427844000,-1059.31266832,0.00028967,2]
[426471569,1782427844000,-1822.73766023,0.00028967,2]
[426471570,1782427844000,-1467.58726541,0.00028967,2]
[426471565,1782427844000,-1263.96411342,0.00028962,2]
[426471567,1782427844000,-1666.60773516,0.00028967,2]
[426471572,1782427844000,-158.7889041,0.00028983,7]
[426471571,1782427844000,-2043.25834104,0.00028967,2]
[426471575,1782427844000,-362.30907092,0.00029,2]
[426471576,1782427844000,-423.0,0.00029,7]
[426471578,1782427844000,-351.15667359,0.00029083,2]
[426471611,1782427844000,-401.95641844,0.00029448,2]
[426471566,1782427844000,-1196.5546118,0.00028962,2]
[426471605,1782427844000,-233.4,0.000292,7]
[426471641,1782427844000,-319.991767,0.00029696,7]
[426471645,1782427844000,-151.0,0.00029696,7]
[426471646,1782427844000,-151.0,0.00029696,7]
[426471647,1782427844000,-151.0,0.00029696,7]
[426471648,1782427844000,-151.0,0.00029696,7]
[426471650,1782427844000,-495.57553,0.00029696,7]
[426471649,1782427844000,-495.57553,0.00029696,7]
[426471651,1782427844000,-495.57553,0.00029696,7]
[426471652,1782427844000,-495.57553,0.00029696,7]
[426471654,1782427844000,-343.070164,0.00029696,7]
[426471655,1782427844000,-151.0,0.00029696,7]
[426471657,1782427844000,-343.070164,0.00029696,7]
[426471653,1782427844000,-151.0,0.00029696,7]
[426471656,1782427844000,-343.070164,0.00029696,7]
[426471659,1782427844000,-151.0,0.00029696,7]
[426471658,1782427844000,-343.070164,0.00029696,7]
[426471662,1782427844000,-277.272788,0.00029696,7]
[426471660,1782427844000,-151.0,0.00029696,7]
[426471661,1782427844000,-277.272788,0.00029696,7]
[426471665,1782427844000,-151.0,0.00029696,7]
[426471664,1782427844000,-277.272788,0.00029696,7]
[426471663,1782427844000,-277.272788,0.00029696,7]
[426471668,1782427844000,-1020.05591294,0.00029732,2]
[426471666,1782427844000,-351.15667359,0.00029715,2]
[426471667,1782427844000,-401.95641844,0.00029722,2]
[426471669,1782427844000,-216.0,0.00029738,5]
[426471610,1782427844000,-151.49213422,0.00029446,27]
[426471640,1782427844000,-319.991767,0.00029696,7]
[426471644,1782427844000,-151.0,0.00029696,7]
[426471582,1782427844000,-319.991767,0.0002912,7]
[426471642,1782427844000,-319.991767,0.00029696,7]
[426471606,1782427844000,-3873.19615376,0.00029221,2]
[426471643,1782427844000,-7437.6274911,0.00029696,2]
[426471612,1782427844000,-351.15667359,0.00029505,2]
[426471614,1782427844000,-4058.91139571,0.00029564,2]
[426471618,1782427844000,-500.0,0.00029589,2]
[426471616,1782427844000,-176.07172224,0.00029589,2]
[426471617,1782427844000,-150.0,0.00029589,2]
[426471619,1782427844000,-500.0,0.00029589,2]
[426471620,1782427844000,-573.35020874,0.00029589,2]
[426471624,1782427844000,-567.0,0.00029633,30]
[426471625,1782427844000,-240.0,0.00029633,30]
[426471621,1782427844000,-838.21536511,0.00029596,2]
[426471622,1782427844000,-4433.69637186,0.00029599,2]
[426471623,1782427844000,-502.0,0.00029633,30]
[426471615,1782427844000,-349.0,0.00029585,2]
[426471637,1782427844000,-300.0,0.00029695,10]
[426471639,1782427844000,-319.991767,0.00029696,7]
[426471627,1782427844000,-1048.0,0.00029633,30]
[426471638,1782427844000,-188.443308,0.00029696,7]
[426471634,1782427844000,-314.0,0.00029635,30]
[426471633,1782427844000,-1043.0,0.00029635,30]
[426471636,1782427844000,-666.0,0.00029695,10]
[426471635,1782427844000,-154.0,0.00029635,30]
[426471629,1782427844000,-156.0,0.00029635,30]
[426471631,1782427844000,-218.0,0.00029635,30]
[426471632,1782427844000,-265.0,0.00029635,30]
[426471628,1782427844000,-279.0,0.00029635,30]
[426471626,1782427844000,-769.0,0.00029633,30]
[426471630,1782427844000,-516.0,0.00029635,30]
[426471688,1782427845000,-17293.41190406,0.000299,2]
[426471692,1782427845000,-17293.41190402,0.000299,2]
[426471691,1782427845000,-17293.41190402,0.000299,2]
[426471689,1782427845000,-17293.41190402,0.000299,2]
[426471686,1782427845000,-343.070164,0.000299,7]
[426471693,1782427845000,-17293.41190402,0.000299,2]
[426471700,1782427845000,-17293.41190402,0.000299,2]
[426471698,1782427845000,-17293.41190402,0.000299,2]
[426471708,1782427845000,-351.15667359,0.00029926,2]
[426471709,1782427845000,-304.53636737,0.0002998,2]
[426471697,1782427845000,-17293.41190402,0.000299,2]
[426471702,1782427845000,-17293.41190402,0.000299,2]
[426471690,1782427845000,-17293.41190402,0.000299,2]
[426471694,1782427845000,-17293.41190402,0.000299,2]
[426471687,1782427845000,-343.070164,0.000299,7]
[426471683,1782427845000,-200.0,0.000299,10]
[426471695,1782427845000,-17293.41190402,0.000299,2]
[426471670,1782427845000,-1100.0,0.000298,10]
[426471671,1782427845000,-233.4,0.000298,7]
[426471673,1782427845000,-1083.33333,0.0002982,2]
[426471684,1782427845000,-343.070164,0.000299,7]
[426471699,1782427845000,-17293.41190402,0.000299,2]
[426471672,1782427845000,-1083.33333,0.0002982,2]
[426471676,1782427845000,-300.0,0.00029899,10]
[426471696,1782427845000,-17293.41190402,0.000299,2]
[426471675,1782427845000,-1083.33333,0.0002982,2]
[426471680,1782427845000,-495.57553,0.000299,7]
[426471678,1782427845000,-495.57553,0.000299,7]
[426471679,1782427845000,-495.57553,0.000299,7]
[426471682,1782427845000,-151.0,0.000299,7]
[426471681,1782427845000,-495.57553,0.000299,7]
[426471677,1782427845000,-666.0,0.00029899,10]
[426471685,1782427845000,-343.070164,0.000299,7]
[426471674,1782427845000,-1083.33334,0.0002982,2]
[426471703,1782427845000,-17293.41190402,0.000299,2]
[426471706,1782427845000,-17293.41190402,0.000299,2]
[426471704,1782427845000,-17293.41190402,0.000299,2]
[426471730,1782427845000,-180.44,0.0003,30]
[426471729,1782427845000,-277.272788,0.0003,7]
[426471727,1782427845000,-151.0,0.0003,7]
[426471731,1782427845000,-277.272788,0.0003,7]
[426471733,1782427845000,-277.272788,0.0003,7]
[426471734,1782427845000,-151.0,0.0003,7]
[426471732,1782427845000,-277.272788,0.0003,7]
[426471735,1782427845000,-691.64,0.0003,7]
[426471737,1782427845000,-1116.12154771,0.00030053,2]
[426471739,1782427845000,-144990.65661004,0.0003008,20]
[426471738,1782427845000,-886.25977904,0.0003007,2]
[426471736,1782427845000,-2333.0,0.00030015,3]
[426471740,1782427845000,-151.0,0.0002912,7]
[426471741,1782427845000,-2378.26721569,0.0003008,20]
[426471701,1782427845000,-17293.41190402,0.000299,2]
[426471728,1782427845000,-623.4,0.0003,7]
[426471726,1782427845000,-1000.0,0.0003,14]
[426471713,1782427845000,-10000.0,0.0003,2]
[426471724,1782427845000,-622.73,0.0003,7]
[426471705,1782427845000,-17293.41190402,0.000299,2]
[426471725,1782427845000,-151.0,0.0003,7]
[426471707,1782427845000,-17293.41190402,0.000299,2]
[426471710,1782427845000,-401.95641844,0.00029996,2]
[426471714,1782427845000,-22500.0,0.0003,2]
[426471719,1782427845000,-10000.0,0.0003,2]
[426471711,1782427845000,-300.0,0.00029999,10]
[426471715,1782427845000,-9999.97,0.0003,2]
[426471717,1782427845000,-15000.0,0.0003,2]
[426471712,1782427845000,-666.0,0.00029999,10]
[426471716,1782427845000,-12500.0,0.0003,2]
[426471718,1782427845000,-22500.0,0.0003,2]
[426471722,1782427845000,-151.0,0.0003,7]
[426471721,1782427845000,-151.0,0.0003,7]
[426471723,1782427845000,-200.0,0.0003,2]
[426471720,1782427845000,-25000.0,0.0003,2]
[426471744,1782427846000,-511.59917944,0.00025965,2]
[426471742,1782427846000,-5382.18633076,0.00025965,2]
[426471743,1782427846000,-525.05410145,0.00024,2]
[426471748,1782427846000,-433.0,0.00025496,2]
[426471746,1782427846000,-0.0020939,0.00025965,2]
[426471747,1782427846000,-502.0,0.00025496,2]
[426471749,1782427846000,-13284.44621361,0.00025965,2]
[426471745,1782427846000,-25584.82334804,0.00025965,2]
[426471763,1782428474000,428.34197011,0.00037261,120]
[426471765,1782428475000,428.34197011,0.00037261,120]
[426471764,1782428475000,428.34197011,0.00037261,120]
[426471768,1782428476000,428.34197011,0.00037261,120]
[426471767,1782428476000,428.34197011,0.00037261,120]
[426471766,1782428476000,428.34197011,0.00037261,120]
[426471771,1782428477000,428.34197011,0.00037261,120]
[426471770,1782428477000,428.34197011,0.00037261,120]
[426471769,1782428477000,428.34197011,0.00037261,120]
[426471773,1782428478000,428.34197011,0.00037261,120]
[426471772,1782428478000,428.34197011,0.00037261,120]
[426471774,1782428479000,428.34197011,0.00037261,120]
[426471775,1782428479000,428.34197011,0.00037261,120]
[426471776,1782428479000,428.34197011,0.00037261,120]
[426471778,1782428480000,428.34197011,0.00037261,120]
[426471777,1782428480000,428.34197011,0.00037261,120]
[426471781,1782428481000,428.34197011,0.00037261,120]
[426471780,1782428481000,428.34197011,0.00037261,120]
[426471779,1782428481000,428.34197011,0.00037261,120]
[426471782,1782428482000,428.34197015,0.00037261,120]
[426471789,1782428816000,-221.1684734,0.00011,2]
[426471790,1782428960000,181.0,0.00037261,120]
[426471791,1782428970000,-2004.04757883,0.00011,2]
[426471795,1782428973000,-929.62659787,0.00011,2]
[426471794,1782428973000,-150.0,0.00011,2]
[426471792,1782428973000,-174.35554765,0.00011,2]
[426471793,1782428973000,-418.50081622,0.00011,2]
[426471798,1782429000000,-160.0,0.00011008,2]
[426471797,1782429000000,-70.37340213,0.00011,2]
[426471803,1782429001000,-949.13620017,0.00012399,2]
[426471802,1782429001000,-3644.04341484,0.00012399,2]
[426471801,1782429001000,-2917.28421217,0.00012399,2]
[426471800,1782429001000,-283.3255198,0.00012289,2]
[426471799,1782429001000,-213.06028074,0.0001122,7]
[426471814,1782429031000,-340.48204018,0.00012399,2]
[426471817,1782429031000,-1849.92141694,0.00012399,2]
[426471816,1782429031000,-3837.15116442,0.00012399,2]
[426471815,1782429031000,-1281.16582259,0.00012399,2]
[426471813,1782429031000,-858.64724402,0.00012399,2]
[426471821,1782429032000,-8884.8318014,0.00012399,2]
[426471819,1782429032000,-1466.16851797,0.00012399,2]
[426471818,1782429032000,-1259.46314763,0.00012399,2]
[426471823,1782429032000,-26448.14530534,0.00012399,2]
[426471820,1782429032000,-3157.93214859,0.00012399,2]
[426471825,1782429032000,-72703.67141477,0.00012399,2]
[426471944,1782429037000,-3118.97406941,0.00012399,2]
[426471973,1782429038000,-256.95,0.00014753,2]
[426471979,1782429038000,-600.0,0.000149,5]
[426471974,1782429038000,-1033.48,0.00014781,2]
[426471978,1782429038000,-1750.63473255,0.00014899,2]
[426471975,1782429038000,-150.0,0.000148,2]
[426471976,1782429038000,-400.0,0.000148,5]
[426471980,1782429038000,-4569.36752005,0.000149,2]
[426471977,1782429038000,-334.16,0.00014844,2]
[426471982,1782429038000,-304.53636737,0.000149,2]
[426471994,1782429038000,-528.46383468,0.00014999,2]
[426471996,1782429038000,-500.0,0.00014999,2]
[426471998,1782429038000,-528.46383468,0.00014999,2]
[426471971,1782429038000,-161.64,0.00014336,2]
[426471983,1782429038000,-6262.3813,0.00014959,2]
[426471985,1782429038000,-500.0,0.00014999,2]
[426471984,1782429038000,-208.69185021,0.00014989,2]
[426471986,1782429038000,-155.50122741,0.00014999,2]
[426471991,1782429038000,-528.46383468,0.00014999,2]
[426471989,1782429038000,-313.25479449,0.00014999,2]
[426471987,1782429038000,-528.46383468,0.00014999,2]
[426472002,1782429038000,-528.46383468,0.00014999,2]
[426472012,1782429038000,-528.46383468,0.00014999,2]
[426472006,1782429038000,-528.46383468,0.00014999,2]
[426471981,1782429038000,-4874.16167545,0.000149,2]
[426471972,1782429038000,-200.0,0.000147,5]
[426471968,1782429038000,-166.66,0.00013843,2]
[426472010,1782429038000,-528.46383468,0.00014999,2]
[426471945,1782429038000,-737.89697117,0.00012399,2]
[426471946,1782429038000,-978073.36920839,0.00012399,2]
[426471947,1782429038000,-1750.63473261,0.00012399,2]
[426471949,1782429038000,-152.0,0.00012499,2]
[426471948,1782429038000,-150.0,0.00012449,2]
[426471953,1782429038000,-151.0,0.00012499,2]
[426471950,1782429038000,-150.0,0.00012499,2]
[426471951,1782429038000,-151.0,0.00012499,2]
[426471958,1782429038000,-151.0,0.00012499,2]
[426471952,1782429038000,-150.0,0.00012499,2]
[426471957,1782429038000,-150.0,0.00012499,2]
[426471970,1782429038000,-250.0,0.00014,2]
[426471955,1782429038000,-151.0,0.00012499,2]
[426471954,1782429038000,-152.0,0.00012499,2]
[426471960,1782429038000,-184.235,0.00012499,2]
[426471959,1782429038000,-1677.315,0.00012499,2]
[426471961,1782429038000,-151.0,0.00012499,2]
[426471963,1782429038000,-166.66,0.00012525,2]
[426471962,1782429038000,-160.0,0.00012515,2]
[426471965,1782429038000,-150.0,0.00013002,2]
[426471964,1782429038000,-311.10278997,0.00012833,2]
[426471967,1782429038000,-203.6,0.00013796,2]
[426471966,1782429038000,-256.95,0.00013114,2]
[426471969,1782429038000,-167.21,0.00013903,2]
[426471956,1782429038000,-150.0,0.00012499,2]
[426472008,1782429038000,-528.46383468,0.00014999,2]
[426472000,1782429038000,-500.0,0.00014999,2]
[426472019,1782429038000,-528.46383468,0.00014999,2]
[426472082,1782429038000,-528.46383468,0.00014999,2]
[426472078,1782429038000,-528.46383468,0.00014999,2]
[426472080,1782429038000,-528.46383468,0.00014999,2]
[426472004,1782429038000,-528.46383468,0.00014999,2]
[426472086,1782429038000,-528.46383468,0.00014999,2]
[426472100,1782429038000,-528.46383468,0.00014999,2]
[426472097,1782429038000,-528.46383468,0.00014999,2]
[426472089,1782429038000,-528.46383468,0.00014999,2]
[426472095,1782429038000,-528.46383468,0.00014999,2]
[426472093,1782429038000,-528.46383468,0.00014999,2]
[426472091,1782429038000,-528.46383468,0.00014999,2]
[426472076,1782429038000,-528.46383468,0.00014999,2]
[426472104,1782429038000,-528.46383468,0.00014999,2]
[426472110,1782429038000,-1223.87161011,0.00014999,2]
[426472122,1782429038000,-1223.87161011,0.00014999,2]
[426472114,1782429038000,-1223.87161011,0.00014999,2]
[426472106,1782429038000,-1223.87161011,0.00014999,2]
[426472102,1782429038000,-528.46383468,0.00014999,2]
[426472112,1782429038000,-1223.87161011,0.00014999,2]
[426472118,1782429038000,-1223.87161011,0.00014999,2]
[426472108,1782429038000,-1223.87161011,0.00014999,2]
[426472120,1782429038000,-1223.87161011,0.00014999,2]
[426472116,1782429038000,-1223.87161011,0.00014999,2]
[426472124,1782429038000,-1223.87161011,0.00014999,2]
[426472105,1782429038000,-528.46383468,0.00014999,2]
[426472074,1782429038000,-528.46383468,0.00014999,2]
[426472084,1782429038000,-528.46383468,0.00014999,2]
[426472069,1782429038000,-528.46383468,0.00014999,2]
[426472021,1782429038000,-528.46383468,0.00014999,2]
[426472017,1782429038000,-528.46383468,0.00014999,2]
[426472015,1782429038000,-528.46383468,0.00014999,2]
[426472025,1782429038000,-528.46383468,0.00014999,2]
[426472023,1782429038000,-528.46383468,0.00014999,2]
[426472071,1782429038000,-528.46383468,0.00014999,2]
[426472037,1782429038000,-528.46383468,0.00014999,2]
[426472039,1782429038000,-528.46383468,0.00014999,2]
[426472046,1782429038000,-528.46383468,0.00014999,2]
[426472044,1782429038000,-528.46383468,0.00014999,2]
[426472042,1782429038000,-528.46383468,0.00014999,2]
[426472029,1782429038000,-528.46383468,0.00014999,2]
[426472027,1782429038000,-528.46383468,0.00014999,2]
[426472033,1782429038000,-528.46383468,0.00014999,2]
[426472035,1782429038000,-528.46383468,0.00014999,2]
[426472048,1782429038000,-528.46383468,0.00014999,2]
[426472051,1782429038000,-528.46383468,0.00014999,2]
[426472059,1782429038000,-528.46383468,0.00014999,2]
[426472062,1782429038000,-528.46383468,0.00014999,2]
[426472055,1782429038000,-528.46383468,0.00014999,2]
[426472053,1782429038000,-528.46383468,0.00014999,2]
[426472057,1782429038000,-528.46383468,0.00014999,2]
[426472064,1782429038000,-528.46383468,0.00014999,2]
[426472067,1782429038000,-528.46383468,0.00014999,2]
[426472031,1782429038000,-528.46383468,0.00014999,2]
[426472142,1782429039000,-1223.87161011,0.00014999,2]
[426472144,1782429039000,-1223.87161011,0.00014999,2]
[426472158,1782429039000,-1223.87161011,0.00014999,2]
[426472136,1782429039000,-1223.87161011,0.00014999,2]
[426472146,1782429039000,-1223.87161011,0.00014999,2]
[426472140,1782429039000,-1223.87161011,0.00014999,2]
[426472125,1782429039000,-1223.87161011,0.00014999,2]
[426472134,1782429039000,-1223.87161011,0.00014999,2]
[426472133,1782429039000,-1223.87161011,0.00014999,2]
[426472131,1782429039000,-1223.87161011,0.00014999,2]
[426472127,1782429039000,-1223.87161011,0.00014999,2]
[426472148,1782429039000,-1223.87161011,0.00014999,2]
[426472138,1782429039000,-1223.87161011,0.00014999,2]
[426472162,1782429039000,-1223.87161012,0.00014999,2]
[426472129,1782429039000,-1223.87161011,0.00014999,2]
[426472160,1782429039000,-1223.87161012,0.00014999,2]
[426472226,1782429039000,-1897.56019118,0.00015,2]
[426472221,1782429039000,-327.60092236,0.00015,2]
[426472224,1782429039000,-948.89821074,0.00015,2]
[426472228,1782429039000,-592.55473332,0.00015,2]
[426472175,1782429039000,-1223.87161012,0.00014999,2]
[426472177,1782429039000,-1040565.4504309,0.00015,2]
[426472173,1782429039000,-1223.87161012,0.00014999,2]
[426472164,1782429039000,-1223.87161012,0.00014999,2]
[426472156,1782429039000,-1223.87161011,0.00014999,2]
[426472166,1782429039000,-1223.87161012,0.00014999,2]
[426472169,1782429039000,-1223.87161012,0.00014999,2]
[426472171,1782429039000,-1223.87161012,0.00014999,2]
[426472152,1782429039000,-1223.87161011,0.00014999,2]
[426472154,1782429039000,-1223.87161011,0.00014999,2]
[426472150,1782429039000,-1223.87161011,0.00014999,2]
[426472358,1782429040000,-286.57,0.00015,2]
[426472351,1782429040000,-19999.755009,0.00015,2]
[426472316,1782429040000,-17518.63,0.00015,2]
[426472285,1782429040000,-1118.71044298,0.00015,2]
[426472847,1782429046000,-1572.30000001,0.00015,2]
[426472846,1782429046000,-74900.85789991,0.00015,2]
[426472845,1782429046000,-1094.89,0.00015,2]
[426472858,1782429067000,439.146003,7.945e-05,2]
[426472859,1782429128000,266.0,0.00037261,120]
[426472860,1782429158000,6386.28207901,0.00037261,120]
[426472866,1782429159000,153.62194116,0.00037261,120]
[426472865,1782429159000,153.62194116,0.00037261,120]
[426472864,1782429159000,242.15909246,0.00037261,120]
[426472863,1782429159000,242.15909246,0.00037261,120]
[426472862,1782429159000,151.0,0.00037261,120]
[426472861,1782429159000,153.62194116,0.00037261,120]
[426472868,1782429160000,153.62194116,0.00037261,120]
[426472867,1782429160000,153.62194116,0.00037261,120]
[426472870,1782429161000,153.62194116,0.00037261,120]